Department family,Entity,Date,Expense Type,Expense area,Supplier,Transaction number,AP Amount (�)
Department of Health,NHS Rotherham CCG,30/11/2017,Hcare Srv Rec Fdtn Trust-Contract Baseline,ACUTE COMMISSIONING,BARNSLEY HOSPITAL NHS FOUNDATION TRUST,19562866,"110,213.00 "
Department of Health,NHS Rotherham CCG,30/11/2017,Clinical&Medical-Commercial Sector,ACUTE COMMISSIONING,BMI HEALTHCARE COLLECTIONS,19604196,"26,541.85 "
Department of Health,NHS Rotherham CCG,30/11/2017,NHS Recbles <1Yr- CHC Risk Pool Con,BALANCE SHEET,CARE FREE RECOVERY LTD,19562883,"38,101.40 "
Department of Health,NHS Rotherham CCG,30/11/2017,Clinical&Medical-Commercial Sector,ACUTE COMMISSIONING,CARE UK CLINICAL SERVICES LTD,19604227,"41,051.32 "
Department of Health,NHS Rotherham CCG,30/11/2017,Clinical&Medical-Commercial Sector,ACUTE COMMISSIONING,CLAREMONT HOSPITAL,19604257,"46,830.00 "
Department of Health,NHS Rotherham CCG,30/11/2017,C&M-PMS Practice Transformational Support,LOCAL ENHANCED SERVICES,CONNECT HEALTHCARE ROTHERHAM LTD,19848705,"25,500.00 "
Department of Health,NHS Rotherham CCG,30/11/2017,Hcare Srv Rec Fdtn Trust-Contract Baseline,ACUTE COMMISSIONING,DONCASTER AND BASSETLAW HOSPITALS NHS FOUNDATION TRUST,19480156,"(27,013.00)"
Department of Health,NHS Rotherham CCG,30/11/2017,Hcare Srv Rec Fdtn Trust-Contract Baseline,ACUTE COMMISSIONING,DONCASTER AND BASSETLAW HOSPITALS NHS FOUNDATION TRUST,19504788,"835,717.00 "
Department of Health,NHS Rotherham CCG,30/11/2017,C&M-PMS Contract Value,PRC DELEGATED CO-COMMISSIONING,NHS ROTHERHAM CCG GP PRACTICE,19592441,"35,824.38 "
Department of Health,NHS Rotherham CCG,30/11/2017,C&M-PMS Funding Differential Review,PRC DELEGATED CO-COMMISSIONING,NHS ROTHERHAM CCG GP PRACTICE,19592441,"3,629.25 "
Department of Health,NHS Rotherham CCG,30/11/2017,C&M-PMS Out of Hours Opt Outs,PRC DELEGATED CO-COMMISSIONING,NHS ROTHERHAM CCG GP PRACTICE,19592441,74.95 
Department of Health,NHS Rotherham CCG,30/11/2017,C&M-PMS Prem Actual Rent,PRC DELEGATED CO-COMMISSIONING,NHS ROTHERHAM CCG GP PRACTICE,19592441,"2,677.08 "
Department of Health,NHS Rotherham CCG,30/11/2017,C&M-PMS Prem Healthcentre Rent,PRC DELEGATED CO-COMMISSIONING,NHS ROTHERHAM CCG GP PRACTICE,19592441,"1,008.30 "
Department of Health,NHS Rotherham CCG,30/11/2017,C&M-PMS Prem Rates,PRC DELEGATED CO-COMMISSIONING,NHS ROTHERHAM CCG GP PRACTICE,19592441,106.20 
Department of Health,NHS Rotherham CCG,30/11/2017,C&M-PMS Prem Water Rates,PRC DELEGATED CO-COMMISSIONING,NHS ROTHERHAM CCG GP PRACTICE,19592441,34.13 
Department of Health,NHS Rotherham CCG,30/11/2017,C&M-PMS QOF Aspiration,PRC DELEGATED CO-COMMISSIONING,NHS ROTHERHAM CCG GP PRACTICE,19592441,"3,300.53 "
Department of Health,NHS Rotherham CCG,30/11/2017,C&M-PMS Contract Value,PRC DELEGATED CO-COMMISSIONING,NHS ROTHERHAM CCG GP PRACTICE,19592439,"94,125.02 "
Department of Health,NHS Rotherham CCG,30/11/2017,C&M-PMS Funding Differential Review,PRC DELEGATED CO-COMMISSIONING,NHS ROTHERHAM CCG GP PRACTICE,19592439,"1,077.92 "
Department of Health,NHS Rotherham CCG,30/11/2017,C&M-PMS Prem Notional Rent,PRC DELEGATED CO-COMMISSIONING,NHS ROTHERHAM CCG GP PRACTICE,19592439,"7,331.33 "
Department of Health,NHS Rotherham CCG,30/11/2017,C&M-PMS Prem Rates,PRC DELEGATED CO-COMMISSIONING,NHS ROTHERHAM CCG GP PRACTICE,19592439,428.40 
Department of Health,NHS Rotherham CCG,30/11/2017,C&M-PMS QOF Aspiration,PRC DELEGATED CO-COMMISSIONING,NHS ROTHERHAM CCG GP PRACTICE,19592439,"9,545.93 "
Department of Health,NHS Rotherham CCG,30/11/2017,C&M-PMS Contract Value,PRC DELEGATED CO-COMMISSIONING,NHS ROTHERHAM CCG GP PRACTICE,19592443,"91,981.98 "
Department of Health,NHS Rotherham CCG,30/11/2017,C&M-PMS Funding Differential Review,PRC DELEGATED CO-COMMISSIONING,NHS ROTHERHAM CCG GP PRACTICE,19592443,"1,020.33 "
Department of Health,NHS Rotherham CCG,30/11/2017,C&M-PMS Out of Hours Opt Outs,PRC DELEGATED CO-COMMISSIONING,NHS ROTHERHAM CCG GP PRACTICE,19592443,5.39 
Department of Health,NHS Rotherham CCG,30/11/2017,C&M-PMS Prem Actual Rent,PRC DELEGATED CO-COMMISSIONING,NHS ROTHERHAM CCG GP PRACTICE,19592443,"3,275.00 "
Department of Health,NHS Rotherham CCG,30/11/2017,C&M-PMS Prem Notional Rent,PRC DELEGATED CO-COMMISSIONING,NHS ROTHERHAM CCG GP PRACTICE,19592443,"5,345.83 "
Department of Health,NHS Rotherham CCG,30/11/2017,C&M-PMS Prem Rates,PRC DELEGATED CO-COMMISSIONING,NHS ROTHERHAM CCG GP PRACTICE,19592443,330.40 
Department of Health,NHS Rotherham CCG,30/11/2017,C&M-PMS QOF Aspiration,PRC DELEGATED CO-COMMISSIONING,NHS ROTHERHAM CCG GP PRACTICE,19592443,"9,058.03 "
Department of Health,NHS Rotherham CCG,30/11/2017,C&M-GMS Global Sum,PRC DELEGATED CO-COMMISSIONING,NHS ROTHERHAM CCG GP PRACTICE,19820218,"44,124.74 "
Department of Health,NHS Rotherham CCG,30/11/2017,C&M-GMS MPIG Correction Factor,PRC DELEGATED CO-COMMISSIONING,NHS ROTHERHAM CCG GP PRACTICE,19820218,185.09 
Department of Health,NHS Rotherham CCG,30/11/2017,C&M-GMS Prem Notional Rent,PRC DELEGATED CO-COMMISSIONING,NHS ROTHERHAM CCG GP PRACTICE,19820218,"2,991.67 "
Department of Health,NHS Rotherham CCG,30/11/2017,C&M-GMS Prem Rates,PRC DELEGATED CO-COMMISSIONING,NHS ROTHERHAM CCG GP PRACTICE,19820218,285.00 
Department of Health,NHS Rotherham CCG,30/11/2017,C&M-GMS QOF Aspiration,PRC DELEGATED CO-COMMISSIONING,NHS ROTHERHAM CCG GP PRACTICE,19820218,"5,826.52 "
Department of Health,NHS Rotherham CCG,30/11/2017,C&M-PMS Contract Value,PRC DELEGATED CO-COMMISSIONING,NHS ROTHERHAM CCG GP PRACTICE,19592449,"109,006.52 "
Department of Health,NHS Rotherham CCG,30/11/2017,C&M-PMS Funding Differential Review,PRC DELEGATED CO-COMMISSIONING,NHS ROTHERHAM CCG GP PRACTICE,19592449,"1,348.67 "
Department of Health,NHS Rotherham CCG,30/11/2017,C&M-PMS Out of Hours Opt Outs,PRC DELEGATED CO-COMMISSIONING,NHS ROTHERHAM CCG GP PRACTICE,19592449,193.99 
Department of Health,NHS Rotherham CCG,30/11/2017,C&M-PMS Prem Healthcentre Rent,PRC DELEGATED CO-COMMISSIONING,NHS ROTHERHAM CCG GP PRACTICE,19592449,"1,777.14 "
Department of Health,NHS Rotherham CCG,30/11/2017,C&M-PMS QOF Aspiration,PRC DELEGATED CO-COMMISSIONING,NHS ROTHERHAM CCG GP PRACTICE,19592449,"11,408.17 "
Department of Health,NHS Rotherham CCG,30/11/2017,C&M-GMS GP Statutory Levy,PRC DELEGATED CO-COMMISSIONING,NHS ROTHERHAM CCG GP PRACTICE,19820219,(328.37)
Department of Health,NHS Rotherham CCG,30/11/2017,C&M-GMS QOF Aspiration,PRC DELEGATED CO-COMMISSIONING,NHS ROTHERHAM CCG GP PRACTICE,19820219,(173.06)
Department of Health,NHS Rotherham CCG,30/11/2017,C&M-GMS Voluntary Levy,PRC DELEGATED CO-COMMISSIONING,NHS ROTHERHAM CCG GP PRACTICE,19820219,(48.33)
Department of Health,NHS Rotherham CCG,30/11/2017,ME - GMS GP Prior Year ERs,PRC DELEGATED CO-COMMISSIONING,NHS ROTHERHAM CCG GP PRACTICE,19820219,"(11,934.00)"
Department of Health,NHS Rotherham CCG,30/11/2017,ME - GMS TPS Added Years Adj EEs,PRC DELEGATED CO-COMMISSIONING,NHS ROTHERHAM CCG GP PRACTICE,19820219,(938.36)
Department of Health,NHS Rotherham CCG,30/11/2017,ME-GMS GP Pension EEs,PRC DELEGATED CO-COMMISSIONING,NHS ROTHERHAM CCG GP PRACTICE,19820219,"(7,752.49)"
Department of Health,NHS Rotherham CCG,30/11/2017,ME-GMS GP Pension ERs Adjustments,PRC DELEGATED CO-COMMISSIONING,NHS ROTHERHAM CCG GP PRACTICE,19820219,"(8,500.55)"
Department of Health,NHS Rotherham CCG,30/11/2017,ME-GMS GP Prior Year EEs,PRC DELEGATED CO-COMMISSIONING,NHS ROTHERHAM CCG GP PRACTICE,19820219,"(12,100.86)"
Department of Health,NHS Rotherham CCG,30/11/2017,C&M-GMS Global Sum,PRC DELEGATED CO-COMMISSIONING,NHS ROTHERHAM CCG GP PRACTICE,19839764,"84,215.80 "
Department of Health,NHS Rotherham CCG,30/11/2017,C&M-GMS MPIG Correction Factor,PRC DELEGATED CO-COMMISSIONING,NHS ROTHERHAM CCG GP PRACTICE,19839764,"3,858.30 "
Department of Health,NHS Rotherham CCG,30/11/2017,C&M-GMS Prem Notional Rent,PRC DELEGATED CO-COMMISSIONING,NHS ROTHERHAM CCG GP PRACTICE,19839764,"6,994.79 "
Department of Health,NHS Rotherham CCG,30/11/2017,C&M-GMS Prem Rates,PRC DELEGATED CO-COMMISSIONING,NHS ROTHERHAM CCG GP PRACTICE,19839764,"1,916.00 "
Department of Health,NHS Rotherham CCG,30/11/2017,C&M-GMS Prem Water Rates,PRC DELEGATED CO-COMMISSIONING,NHS ROTHERHAM CCG GP PRACTICE,19839764,253.56 
Department of Health,NHS Rotherham CCG,30/11/2017,C&M-GMS QOF Aspiration,PRC DELEGATED CO-COMMISSIONING,NHS ROTHERHAM CCG GP PRACTICE,19839764,"9,824.76 "
Department of Health,NHS Rotherham CCG,30/11/2017,ME - GMS GP Prior Year ERs,PRC DELEGATED CO-COMMISSIONING,NHS ROTHERHAM CCG GP PRACTICE,19839764,"7,823.88 "
Department of Health,NHS Rotherham CCG,30/11/2017,ME-GMS GP Pension EEs Adjustments,PRC DELEGATED CO-COMMISSIONING,NHS ROTHERHAM CCG GP PRACTICE,19839764,"2,296.45 "
Department of Health,NHS Rotherham CCG,30/11/2017,ME-GMS GP Pension ERs Adjustments,PRC DELEGATED CO-COMMISSIONING,NHS ROTHERHAM CCG GP PRACTICE,19839764,"2,604.74 "
Department of Health,NHS Rotherham CCG,30/11/2017,ME-GMS GP Prior Year EEs,PRC DELEGATED CO-COMMISSIONING,NHS ROTHERHAM CCG GP PRACTICE,19839764,"6,839.10 "
Department of Health,NHS Rotherham CCG,30/11/2017,C&M-PMS Contract Value,PRC DELEGATED CO-COMMISSIONING,NHS ROTHERHAM CCG GP PRACTICE,19592446,(25.67)
Department of Health,NHS Rotherham CCG,30/11/2017,C&M-PMS GP Statutory Levy,PRC DELEGATED CO-COMMISSIONING,NHS ROTHERHAM CCG GP PRACTICE,19592446,(588.53)
Department of Health,NHS Rotherham CCG,30/11/2017,C&M-PMS Out of Hours Opt Outs,PRC DELEGATED CO-COMMISSIONING,NHS ROTHERHAM CCG GP PRACTICE,19592446,"(7,732.42)"
Department of Health,NHS Rotherham CCG,30/11/2017,C&M-PMS QOF Aspiration,PRC DELEGATED CO-COMMISSIONING,NHS ROTHERHAM CCG GP PRACTICE,19592446,"(1,788.54)"
Department of Health,NHS Rotherham CCG,30/11/2017,C&M-PMS Voluntary Levy,PRC DELEGATED CO-COMMISSIONING,NHS ROTHERHAM CCG GP PRACTICE,19592446,(86.63)
Department of Health,NHS Rotherham CCG,30/11/2017,ME - PMS TPS Added Years Adj EEs,PRC DELEGATED CO-COMMISSIONING,NHS ROTHERHAM CCG GP PRACTICE,19592446,(675.00)
Department of Health,NHS Rotherham CCG,30/11/2017,ME-PMS GP Pension EEs-PMS,PRC DELEGATED CO-COMMISSIONING,NHS ROTHERHAM CCG GP PRACTICE,19592446,"(13,225.01)"
Department of Health,NHS Rotherham CCG,30/11/2017,ME-PMS GP Pension ERs Adjs - PMS,PRC DELEGATED CO-COMMISSIONING,NHS ROTHERHAM CCG GP PRACTICE,19592446,"(13,857.53)"
Department of Health,NHS Rotherham CCG,30/11/2017,C&M-PMS Contract Value,PRC DELEGATED CO-COMMISSIONING,NHS ROTHERHAM CCG GP PRACTICE,19592447,"163,737.30 "
Department of Health,NHS Rotherham CCG,30/11/2017,C&M-PMS Funding Differential Review,PRC DELEGATED CO-COMMISSIONING,NHS ROTHERHAM CCG GP PRACTICE,19592447,"4,236.00 "
Department of Health,NHS Rotherham CCG,30/11/2017,C&M-PMS Out of Hours Opt Outs,PRC DELEGATED CO-COMMISSIONING,NHS ROTHERHAM CCG GP PRACTICE,19592447,1.27 
Department of Health,NHS Rotherham CCG,30/11/2017,C&M-PMS Prem Actual Rent,PRC DELEGATED CO-COMMISSIONING,NHS ROTHERHAM CCG GP PRACTICE,19592447,"12,510.33 "
Department of Health,NHS Rotherham CCG,30/11/2017,C&M-PMS Prem Notional Rent,PRC DELEGATED CO-COMMISSIONING,NHS ROTHERHAM CCG GP PRACTICE,19592447,"7,078.33 "
Department of Health,NHS Rotherham CCG,30/11/2017,C&M-PMS Prem Rates,PRC DELEGATED CO-COMMISSIONING,NHS ROTHERHAM CCG GP PRACTICE,19592447,765.20 
Department of Health,NHS Rotherham CCG,30/11/2017,C&M-PMS QOF Aspiration,PRC DELEGATED CO-COMMISSIONING,NHS ROTHERHAM CCG GP PRACTICE,19592447,"20,546.71 "
Department of Health,NHS Rotherham CCG,30/11/2017,C&M-PMS Cost of Drugs -Dispensing,LOCAL ENHANCED SERVICES,NHS ROTHERHAM CCG GP PRACTICE,19849045,"62,996.81 "
Department of Health,NHS Rotherham CCG,30/11/2017,C&M-PMS Prof fees Dispensing,PRC DELEGATED CO-COMMISSIONING,NHS ROTHERHAM CCG GP PRACTICE,19849045,"7,073.70 "
Department of Health,NHS Rotherham CCG,30/11/2017,C&M-PMS Prsc Chrgs Cll&Rmttd by GPs,LOCAL ENHANCED SERVICES,NHS ROTHERHAM CCG GP PRACTICE,19849045,799.80 
Department of Health,NHS Rotherham CCG,30/11/2017,C&M-PMS Contract Value,PRC DELEGATED CO-COMMISSIONING,NHS ROTHERHAM CCG GP PRACTICE,19592445,"91,951.70 "
Department of Health,NHS Rotherham CCG,30/11/2017,C&M-PMS Funding Differential Review,PRC DELEGATED CO-COMMISSIONING,NHS ROTHERHAM CCG GP PRACTICE,19592445,"4,022.08 "
Department of Health,NHS Rotherham CCG,30/11/2017,C&M-PMS Prem Notional Rent,PRC DELEGATED CO-COMMISSIONING,NHS ROTHERHAM CCG GP PRACTICE,19592445,"14,424.42 "
Department of Health,NHS Rotherham CCG,30/11/2017,C&M-PMS Prem Rates,PRC DELEGATED CO-COMMISSIONING,NHS ROTHERHAM CCG GP PRACTICE,19592445,538.60 
Department of Health,NHS Rotherham CCG,30/11/2017,C&M-PMS QOF Aspiration,PRC DELEGATED CO-COMMISSIONING,NHS ROTHERHAM CCG GP PRACTICE,19592445,"11,193.86 "
Department of Health,NHS Rotherham CCG,30/11/2017,C&M-PMS Cost of Drugs -Dispensing,LOCAL ENHANCED SERVICES,NHS ROTHERHAM CCG GP PRACTICE,19849042,"(32,995.33)"
Department of Health,NHS Rotherham CCG,30/11/2017,C&M-PMS Prsc Chrgs Cll&Rmttd by GPs,PRC DELEGATED CO-COMMISSIONING,NHS ROTHERHAM CCG GP PRACTICE,19849042,"(1,367.40)"
Department of Health,NHS Rotherham CCG,30/11/2017,C&M-PMS Cost of Drugs -Dispensing,LOCAL ENHANCED SERVICES,NHS ROTHERHAM CCG GP PRACTICE,19849043,"73,293.24 "
Department of Health,NHS Rotherham CCG,30/11/2017,C&M-PMS Prof fees Dispensing,PRC DELEGATED CO-COMMISSIONING,NHS ROTHERHAM CCG GP PRACTICE,19849043,"11,775.63 "
Department of Health,NHS Rotherham CCG,30/11/2017,C&M-PMS Prsc Chrgs Cll&Rmttd by GPs,LOCAL ENHANCED SERVICES,NHS ROTHERHAM CCG GP PRACTICE,19849043,"1,367.40 "
Department of Health,NHS Rotherham CCG,30/11/2017,C&M-GMS Global Sum,PRC DELEGATED CO-COMMISSIONING,NHS ROTHERHAM CCG GP PRACTICE,19820221,"82,158.66 "
Department of Health,NHS Rotherham CCG,30/11/2017,C&M-GMS MPIG Correction Factor,PRC DELEGATED CO-COMMISSIONING,NHS ROTHERHAM CCG GP PRACTICE,19820221,"3,259.32 "
Department of Health,NHS Rotherham CCG,30/11/2017,C&M-GMS Prem Cost Rent,PRC DELEGATED CO-COMMISSIONING,NHS ROTHERHAM CCG GP PRACTICE,19820221,762.92 
Department of Health,NHS Rotherham CCG,30/11/2017,C&M-GMS Prem Notional Rent,PRC DELEGATED CO-COMMISSIONING,NHS ROTHERHAM CCG GP PRACTICE,19820221,"8,908.34 "
Department of Health,NHS Rotherham CCG,30/11/2017,C&M-GMS Prem Rates,PRC DELEGATED CO-COMMISSIONING,NHS ROTHERHAM CCG GP PRACTICE,19820221,"1,336.00 "
Department of Health,NHS Rotherham CCG,30/11/2017,C&M-GMS QOF Aspiration,PRC DELEGATED CO-COMMISSIONING,NHS ROTHERHAM CCG GP PRACTICE,19820221,"9,420.36 "
Department of Health,NHS Rotherham CCG,30/11/2017,C&M-GMS Cost of Drugs -Dispensing,LOCAL ENHANCED SERVICES,NHS ROTHERHAM CCG GP PRACTICE,19849050,"32,597.26 "
Department of Health,NHS Rotherham CCG,30/11/2017,C&M-GMS Prof Fees Dispensing,PRC DELEGATED CO-COMMISSIONING,NHS ROTHERHAM CCG GP PRACTICE,19849050,"4,059.80 "
Department of Health,NHS Rotherham CCG,30/11/2017,C&M-GMS PrscrptnChrgsColl&RmttdbyGP,LOCAL ENHANCED SERVICES,NHS ROTHERHAM CCG GP PRACTICE,19849050,498.80 
Department of Health,NHS Rotherham CCG,30/11/2017,C&M-PMS Contract Value,PRC DELEGATED CO-COMMISSIONING,NHS ROTHERHAM CCG GP PRACTICE,19592452,"103,717.47 "
Department of Health,NHS Rotherham CCG,30/11/2017,C&M-PMS Funding Differential Review,PRC DELEGATED CO-COMMISSIONING,NHS ROTHERHAM CCG GP PRACTICE,19592452,"2,929.58 "
Department of Health,NHS Rotherham CCG,30/11/2017,C&M-PMS Out of Hours Opt Outs,PRC DELEGATED CO-COMMISSIONING,NHS ROTHERHAM CCG GP PRACTICE,19592452,21.78 
Department of Health,NHS Rotherham CCG,30/11/2017,C&M-PMS PCO Other,PRC DELEGATED CO-COMMISSIONING,NHS ROTHERHAM CCG GP PRACTICE,19592452,104.74 
Department of Health,NHS Rotherham CCG,30/11/2017,C&M-PMS Prem Notional Rent,PRC DELEGATED CO-COMMISSIONING,NHS ROTHERHAM CCG GP PRACTICE,19592452,"9,208.42 "
Department of Health,NHS Rotherham CCG,30/11/2017,C&M-PMS QOF Aspiration,PRC DELEGATED CO-COMMISSIONING,NHS ROTHERHAM CCG GP PRACTICE,19592452,"10,629.91 "
Department of Health,NHS Rotherham CCG,30/11/2017,C&M-PMS Contract Value,PRC DELEGATED CO-COMMISSIONING,NHS ROTHERHAM CCG GP PRACTICE,19592450,"(2,807.76)"
Department of Health,NHS Rotherham CCG,30/11/2017,C&M-PMS GP Statutory Levy,PRC DELEGATED CO-COMMISSIONING,NHS ROTHERHAM CCG GP PRACTICE,19592450,(499.06)
Department of Health,NHS Rotherham CCG,30/11/2017,C&M-PMS Out of Hours Opt Outs,PRC DELEGATED CO-COMMISSIONING,NHS ROTHERHAM CCG GP PRACTICE,19592450,"(6,971.05)"
Department of Health,NHS Rotherham CCG,30/11/2017,C&M-PMS Voluntary Levy,PRC DELEGATED CO-COMMISSIONING,NHS ROTHERHAM CCG GP PRACTICE,19592450,(73.46)
Department of Health,NHS Rotherham CCG,30/11/2017,ME - PMS TPS Added Years Adj EEs,PRC DELEGATED CO-COMMISSIONING,NHS ROTHERHAM CCG GP PRACTICE,19592450,(176.27)
Department of Health,NHS Rotherham CCG,30/11/2017,ME-PMS GP Pension EEs-PMS,PRC DELEGATED CO-COMMISSIONING,NHS ROTHERHAM CCG GP PRACTICE,19592450,"(10,924.77)"
Department of Health,NHS Rotherham CCG,30/11/2017,ME-PMS GP Pension ERs Adjs - PMS,PRC DELEGATED CO-COMMISSIONING,NHS ROTHERHAM CCG GP PRACTICE,19592450,"(11,583.39)"
Department of Health,NHS Rotherham CCG,30/11/2017,C&M-PMS Contract Value,PRC DELEGATED CO-COMMISSIONING,NHS ROTHERHAM CCG GP PRACTICE,19614925,"147,773.13 "
Department of Health,NHS Rotherham CCG,30/11/2017,C&M-PMS Funding Differential Review,PRC DELEGATED CO-COMMISSIONING,NHS ROTHERHAM CCG GP PRACTICE,19614925,"1,112.08 "
Department of Health,NHS Rotherham CCG,30/11/2017,C&M-PMS Out of Hours Opt Outs,PRC DELEGATED CO-COMMISSIONING,NHS ROTHERHAM CCG GP PRACTICE,19614925,139.84 
Department of Health,NHS Rotherham CCG,30/11/2017,C&M-PMS PCO Locum Adop/Pat/Mat,PRC DELEGATED CO-COMMISSIONING,NHS ROTHERHAM CCG GP PRACTICE,19614925,452.70 
Department of Health,NHS Rotherham CCG,30/11/2017,C&M-PMS Prem Actual Rent,PRC DELEGATED CO-COMMISSIONING,NHS ROTHERHAM CCG GP PRACTICE,19614925,550.00 
Department of Health,NHS Rotherham CCG,30/11/2017,C&M-PMS Prem Healthcentre Rent,PRC DELEGATED CO-COMMISSIONING,NHS ROTHERHAM CCG GP PRACTICE,19614925,564.93 
Department of Health,NHS Rotherham CCG,30/11/2017,C&M-PMS Prem Notional Rent,PRC DELEGATED CO-COMMISSIONING,NHS ROTHERHAM CCG GP PRACTICE,19614925,"21,023.33 "
Department of Health,NHS Rotherham CCG,30/11/2017,C&M-PMS QOF Aspiration,PRC DELEGATED CO-COMMISSIONING,NHS ROTHERHAM CCG GP PRACTICE,19614925,"16,075.82 "
Department of Health,NHS Rotherham CCG,30/11/2017,C&M-PMS Contract Value,PRC DELEGATED CO-COMMISSIONING,NHS ROTHERHAM CCG GP PRACTICE,19592476,"56,859.76 "
Department of Health,NHS Rotherham CCG,30/11/2017,C&M-PMS Funding Differential Review,PRC DELEGATED CO-COMMISSIONING,NHS ROTHERHAM CCG GP PRACTICE,19592476,"1,000.58 "
Department of Health,NHS Rotherham CCG,30/11/2017,C&M-PMS Out of Hours Opt Outs,PRC DELEGATED CO-COMMISSIONING,NHS ROTHERHAM CCG GP PRACTICE,19592476,28.05 
Department of Health,NHS Rotherham CCG,30/11/2017,C&M-PMS PCO Other,PRC DELEGATED CO-COMMISSIONING,NHS ROTHERHAM CCG GP PRACTICE,19592476,90.52 
Department of Health,NHS Rotherham CCG,30/11/2017,C&M-PMS Prem Healthcentre Rent,PRC DELEGATED CO-COMMISSIONING,NHS ROTHERHAM CCG GP PRACTICE,19592476,"3,664.45 "
Department of Health,NHS Rotherham CCG,30/11/2017,C&M-PMS QOF Aspiration,PRC DELEGATED CO-COMMISSIONING,NHS ROTHERHAM CCG GP PRACTICE,19592476,"6,479.48 "
Department of Health,NHS Rotherham CCG,30/11/2017,C&M-GMS Global Sum,PRC DELEGATED CO-COMMISSIONING,NHS ROTHERHAM CCG GP PRACTICE,19820223,"24,878.61 "
Department of Health,NHS Rotherham CCG,30/11/2017,C&M-GMS MPIG Correction Factor,PRC DELEGATED CO-COMMISSIONING,NHS ROTHERHAM CCG GP PRACTICE,19820223,134.98 
Department of Health,NHS Rotherham CCG,30/11/2017,C&M-GMS Prem Healthcentre Rent,PRC DELEGATED CO-COMMISSIONING,NHS ROTHERHAM CCG GP PRACTICE,19820223,"3,986.30 "
Department of Health,NHS Rotherham CCG,30/11/2017,C&M-GMS QOF Aspiration,PRC DELEGATED CO-COMMISSIONING,NHS ROTHERHAM CCG GP PRACTICE,19820223,"3,237.30 "
Department of Health,NHS Rotherham CCG,30/11/2017,C&M-PMS Contract Value,PRC DELEGATED CO-COMMISSIONING,NHS ROTHERHAM CCG GP PRACTICE,19592454,"17,749.75 "
Department of Health,NHS Rotherham CCG,30/11/2017,C&M-PMS Funding Differential Review,PRC DELEGATED CO-COMMISSIONING,NHS ROTHERHAM CCG GP PRACTICE,19592454,737.83 
Department of Health,NHS Rotherham CCG,30/11/2017,C&M-PMS Out of Hours Opt Outs,PRC DELEGATED CO-COMMISSIONING,NHS ROTHERHAM CCG GP PRACTICE,19592454,63.47 
Department of Health,NHS Rotherham CCG,30/11/2017,C&M-PMS PCO Other,PRC DELEGATED CO-COMMISSIONING,NHS ROTHERHAM CCG GP PRACTICE,19592454,474.17 
Department of Health,NHS Rotherham CCG,30/11/2017,C&M-PMS Prem Actual Rent,PRC DELEGATED CO-COMMISSIONING,NHS ROTHERHAM CCG GP PRACTICE,19592454,"5,755.21 "
Department of Health,NHS Rotherham CCG,30/11/2017,C&M-PMS Prem Rates,PRC DELEGATED CO-COMMISSIONING,NHS ROTHERHAM CCG GP PRACTICE,19592454,178.20 
Department of Health,NHS Rotherham CCG,30/11/2017,C&M-PMS QOF Aspiration,PRC DELEGATED CO-COMMISSIONING,NHS ROTHERHAM CCG GP PRACTICE,19592454,"1,782.21 "
Department of Health,NHS Rotherham CCG,30/11/2017,C&M-PMS Contract Value,PRC DELEGATED CO-COMMISSIONING,NHS ROTHERHAM CCG GP PRACTICE,19592458,"27,520.36 "
Department of Health,NHS Rotherham CCG,30/11/2017,C&M-PMS Funding Differential Review,PRC DELEGATED CO-COMMISSIONING,NHS ROTHERHAM CCG GP PRACTICE,19592458,"1,708.25 "
Department of Health,NHS Rotherham CCG,30/11/2017,C&M-PMS Prem Notional Rent,PRC DELEGATED CO-COMMISSIONING,NHS ROTHERHAM CCG GP PRACTICE,19592458,"3,100.00 "
Department of Health,NHS Rotherham CCG,30/11/2017,C&M-PMS Prem Rates,PRC DELEGATED CO-COMMISSIONING,NHS ROTHERHAM CCG GP PRACTICE,19592458,92.20 
Department of Health,NHS Rotherham CCG,30/11/2017,C&M-PMS QOF Aspiration,PRC DELEGATED CO-COMMISSIONING,NHS ROTHERHAM CCG GP PRACTICE,19592458,"2,810.34 "
Department of Health,NHS Rotherham CCG,30/11/2017,C&M-PMS Contract Value,PRC DELEGATED CO-COMMISSIONING,NHS ROTHERHAM CCG GP PRACTICE,19592465,"51,325.31 "
Department of Health,NHS Rotherham CCG,30/11/2017,C&M-PMS Funding Differential Review,PRC DELEGATED CO-COMMISSIONING,NHS ROTHERHAM CCG GP PRACTICE,19592465,"1,679.58 "
Department of Health,NHS Rotherham CCG,30/11/2017,C&M-PMS Out of Hours Opt Outs,PRC DELEGATED CO-COMMISSIONING,NHS ROTHERHAM CCG GP PRACTICE,19592465,5.40 
Department of Health,NHS Rotherham CCG,30/11/2017,C&M-PMS Prem Notional Rent,PRC DELEGATED CO-COMMISSIONING,NHS ROTHERHAM CCG GP PRACTICE,19592465,"5,822.50 "
Department of Health,NHS Rotherham CCG,30/11/2017,C&M-PMS Prem Rates,PRC DELEGATED CO-COMMISSIONING,NHS ROTHERHAM CCG GP PRACTICE,19592465,247.80 
Department of Health,NHS Rotherham CCG,30/11/2017,C&M-PMS QOF Aspiration,PRC DELEGATED CO-COMMISSIONING,NHS ROTHERHAM CCG GP PRACTICE,19592465,"5,637.80 "
Department of Health,NHS Rotherham CCG,30/11/2017,C&M-PMS Contract Value,PRC DELEGATED CO-COMMISSIONING,NHS ROTHERHAM CCG GP PRACTICE,19592467,"51,410.94 "
Department of Health,NHS Rotherham CCG,30/11/2017,C&M-PMS Funding Differential Review,PRC DELEGATED CO-COMMISSIONING,NHS ROTHERHAM CCG GP PRACTICE,19592467,"1,168.00 "
Department of Health,NHS Rotherham CCG,30/11/2017,C&M-PMS Out of Hours Opt Outs,PRC DELEGATED CO-COMMISSIONING,NHS ROTHERHAM CCG GP PRACTICE,19592467,9.15 
Department of Health,NHS Rotherham CCG,30/11/2017,C&M-PMS Prem Healthcentre Rent,PRC DELEGATED CO-COMMISSIONING,NHS ROTHERHAM CCG GP PRACTICE,19592467,"3,746.27 "
Department of Health,NHS Rotherham CCG,30/11/2017,C&M-PMS QOF Aspiration,PRC DELEGATED CO-COMMISSIONING,NHS ROTHERHAM CCG GP PRACTICE,19592467,"6,275.92 "
Department of Health,NHS Rotherham CCG,30/11/2017,C&M-GMS Global Sum,PRC DELEGATED CO-COMMISSIONING,NHS ROTHERHAM CCG GP PRACTICE,19820225,"69,334.60 "
Department of Health,NHS Rotherham CCG,30/11/2017,C&M-GMS Prem Notional Rent,PRC DELEGATED CO-COMMISSIONING,NHS ROTHERHAM CCG GP PRACTICE,19820225,"8,093.83 "
Department of Health,NHS Rotherham CCG,30/11/2017,C&M-GMS Prem Rates,PRC DELEGATED CO-COMMISSIONING,NHS ROTHERHAM CCG GP PRACTICE,19820225,845.00 
Department of Health,NHS Rotherham CCG,30/11/2017,C&M-GMS Prem Water Rates,PRC DELEGATED CO-COMMISSIONING,NHS ROTHERHAM CCG GP PRACTICE,19820225,438.03 
Department of Health,NHS Rotherham CCG,30/11/2017,C&M-GMS QOF Aspiration,PRC DELEGATED CO-COMMISSIONING,NHS ROTHERHAM CCG GP PRACTICE,19820225,"8,813.31 "
Department of Health,NHS Rotherham CCG,30/11/2017,C&M-GMS Global Sum,PRC DELEGATED CO-COMMISSIONING,NHS ROTHERHAM CCG GP PRACTICE,19820227,"28,817.95 "
Department of Health,NHS Rotherham CCG,30/11/2017,C&M-GMS Prem Healthcentre Rent,PRC DELEGATED CO-COMMISSIONING,NHS ROTHERHAM CCG GP PRACTICE,19820227,"3,679.94 "
Department of Health,NHS Rotherham CCG,30/11/2017,C&M-GMS QOF Aspiration,PRC DELEGATED CO-COMMISSIONING,NHS ROTHERHAM CCG GP PRACTICE,19820227,"2,401.85 "
Department of Health,NHS Rotherham CCG,30/11/2017,C&M-PMS Contract Value,PRC DELEGATED CO-COMMISSIONING,NHS ROTHERHAM CCG GP PRACTICE,19592462,"61,141.69 "
Department of Health,NHS Rotherham CCG,30/11/2017,C&M-PMS PCO Other,PRC DELEGATED CO-COMMISSIONING,NHS ROTHERHAM CCG GP PRACTICE,19592462,90.52 
Department of Health,NHS Rotherham CCG,30/11/2017,C&M-PMS Prem Notional Rent,PRC DELEGATED CO-COMMISSIONING,NHS ROTHERHAM CCG GP PRACTICE,19592462,"3,966.67 "
Department of Health,NHS Rotherham CCG,30/11/2017,C&M-PMS Prem Rates,PRC DELEGATED CO-COMMISSIONING,NHS ROTHERHAM CCG GP PRACTICE,19592462,194.40 
Department of Health,NHS Rotherham CCG,30/11/2017,C&M-PMS QOF Aspiration,PRC DELEGATED CO-COMMISSIONING,NHS ROTHERHAM CCG GP PRACTICE,19592462,"6,347.20 "
Department of Health,NHS Rotherham CCG,30/11/2017,C&M-PMS Contract Value,PRC DELEGATED CO-COMMISSIONING,NHS ROTHERHAM CCG GP PRACTICE,19614926,"12,669.66 "
Department of Health,NHS Rotherham CCG,30/11/2017,C&M-PMS Funding Differential Review,PRC DELEGATED CO-COMMISSIONING,NHS ROTHERHAM CCG GP PRACTICE,19614926,"1,483.33 "
Department of Health,NHS Rotherham CCG,30/11/2017,C&M-PMS PCO Other,PRC DELEGATED CO-COMMISSIONING,NHS ROTHERHAM CCG GP PRACTICE,19614926,76.90 
Department of Health,NHS Rotherham CCG,30/11/2017,C&M-PMS Prem Notional Rent,PRC DELEGATED CO-COMMISSIONING,NHS ROTHERHAM CCG GP PRACTICE,19614926,"2,016.67 "
Department of Health,NHS Rotherham CCG,30/11/2017,C&M-PMS QOF Aspiration,PRC DELEGATED CO-COMMISSIONING,NHS ROTHERHAM CCG GP PRACTICE,19614926,"1,467.79 "
Department of Health,NHS Rotherham CCG,30/11/2017,ME - PMS GP Prior Year ERs,PRC DELEGATED CO-COMMISSIONING,NHS ROTHERHAM CCG GP PRACTICE,19614926,"1,909.61 "
Department of Health,NHS Rotherham CCG,30/11/2017,ME - PMS TPS Added Years Adj EEs,PRC DELEGATED CO-COMMISSIONING,NHS ROTHERHAM CCG GP PRACTICE,19614926,661.38 
Department of Health,NHS Rotherham CCG,30/11/2017,ME-PMS GP Pension EEs-PMS,PRC DELEGATED CO-COMMISSIONING,NHS ROTHERHAM CCG GP PRACTICE,19614926,"3,915.02 "
Department of Health,NHS Rotherham CCG,30/11/2017,ME-PMS GP Pension ERs Adjs - PMS,PRC DELEGATED CO-COMMISSIONING,NHS ROTHERHAM CCG GP PRACTICE,19614926,"3,149.62 "
Department of Health,NHS Rotherham CCG,30/11/2017,ME-PMS GP Prior Year AVCs,PRC DELEGATED CO-COMMISSIONING,NHS ROTHERHAM CCG GP PRACTICE,19614926,"1,227.63 "
Department of Health,NHS Rotherham CCG,30/11/2017,ME-PMS GP Prior Year EEs,PRC DELEGATED CO-COMMISSIONING,NHS ROTHERHAM CCG GP PRACTICE,19614926,"2,868.51 "
Department of Health,NHS Rotherham CCG,30/11/2017,C&M-PMS Contract Value,PRC DELEGATED CO-COMMISSIONING,NHS ROTHERHAM CCG GP PRACTICE,19596316,"51,766.72 "
Department of Health,NHS Rotherham CCG,30/11/2017,C&M-PMS Funding Differential Review,PRC DELEGATED CO-COMMISSIONING,NHS ROTHERHAM CCG GP PRACTICE,19596316,393.25 
Department of Health,NHS Rotherham CCG,30/11/2017,C&M-PMS Prem Notional Rent,PRC DELEGATED CO-COMMISSIONING,NHS ROTHERHAM CCG GP PRACTICE,19596316,"4,491.67 "
Department of Health,NHS Rotherham CCG,30/11/2017,C&M-PMS Prem Rates,PRC DELEGATED CO-COMMISSIONING,NHS ROTHERHAM CCG GP PRACTICE,19596316,99.40 
Department of Health,NHS Rotherham CCG,30/11/2017,C&M-PMS QOF Aspiration,PRC DELEGATED CO-COMMISSIONING,NHS ROTHERHAM CCG GP PRACTICE,19596316,"5,482.71 "
Department of Health,NHS Rotherham CCG,30/11/2017,C&M-PMS Contract Value,PRC DELEGATED CO-COMMISSIONING,NHS ROTHERHAM CCG GP PRACTICE,19596318,"65,605.42 "
Department of Health,NHS Rotherham CCG,30/11/2017,C&M-PMS Funding Differential Review,PRC DELEGATED CO-COMMISSIONING,NHS ROTHERHAM CCG GP PRACTICE,19596318,936.00 
Department of Health,NHS Rotherham CCG,30/11/2017,C&M-PMS Out of Hours Opt Outs,PRC DELEGATED CO-COMMISSIONING,NHS ROTHERHAM CCG GP PRACTICE,19596318,25.53 
Department of Health,NHS Rotherham CCG,30/11/2017,C&M-PMS Prem Healthcentre Rent,PRC DELEGATED CO-COMMISSIONING,NHS ROTHERHAM CCG GP PRACTICE,19596318,603.36 
Department of Health,NHS Rotherham CCG,30/11/2017,C&M-PMS Prem Notional Rent,PRC DELEGATED CO-COMMISSIONING,NHS ROTHERHAM CCG GP PRACTICE,19596318,"3,402.08 "
Department of Health,NHS Rotherham CCG,30/11/2017,C&M-PMS Prem Rates,PRC DELEGATED CO-COMMISSIONING,NHS ROTHERHAM CCG GP PRACTICE,19596318,124.40 
Department of Health,NHS Rotherham CCG,30/11/2017,C&M-PMS QOF Aspiration,PRC DELEGATED CO-COMMISSIONING,NHS ROTHERHAM CCG GP PRACTICE,19596318,"6,089.10 "
Department of Health,NHS Rotherham CCG,30/11/2017,C&M-PMS Contract Value,PRC DELEGATED CO-COMMISSIONING,NHS ROTHERHAM CCG GP PRACTICE,19596314,"47,117.20 "
Department of Health,NHS Rotherham CCG,30/11/2017,C&M-PMS Funding Differential Review,PRC DELEGATED CO-COMMISSIONING,NHS ROTHERHAM CCG GP PRACTICE,19596314,"1,226.17 "
Department of Health,NHS Rotherham CCG,30/11/2017,C&M-PMS Prem Healthcentre Rent,PRC DELEGATED CO-COMMISSIONING,NHS ROTHERHAM CCG GP PRACTICE,19596314,"1,979.17 "
Department of Health,NHS Rotherham CCG,30/11/2017,C&M-PMS QOF Aspiration,PRC DELEGATED CO-COMMISSIONING,NHS ROTHERHAM CCG GP PRACTICE,19596314,"4,189.51 "
Department of Health,NHS Rotherham CCG,30/11/2017,C&M-PMS Contract Value,PRC DELEGATED CO-COMMISSIONING,NHS ROTHERHAM CCG GP PRACTICE,19592460,"46,179.23 "
Department of Health,NHS Rotherham CCG,30/11/2017,C&M-PMS Funding Differential Review,PRC DELEGATED CO-COMMISSIONING,NHS ROTHERHAM CCG GP PRACTICE,19592460,638.58 
Department of Health,NHS Rotherham CCG,30/11/2017,C&M-PMS Prem Notional Rent,PRC DELEGATED CO-COMMISSIONING,NHS ROTHERHAM CCG GP PRACTICE,19592460,"7,075.50 "
Department of Health,NHS Rotherham CCG,30/11/2017,C&M-PMS QOF Aspiration,PRC DELEGATED CO-COMMISSIONING,NHS ROTHERHAM CCG GP PRACTICE,19592460,"4,274.74 "
Department of Health,NHS Rotherham CCG,30/11/2017,C&M-PMS Contract Value,PRC DELEGATED CO-COMMISSIONING,NHS ROTHERHAM CCG GP PRACTICE,19592469,"38,253.48 "
Department of Health,NHS Rotherham CCG,30/11/2017,C&M-PMS Funding Differential Review,PRC DELEGATED CO-COMMISSIONING,NHS ROTHERHAM CCG GP PRACTICE,19592469,"1,609.92 "
Department of Health,NHS Rotherham CCG,30/11/2017,C&M-PMS Out of Hours Opt Outs,PRC DELEGATED CO-COMMISSIONING,NHS ROTHERHAM CCG GP PRACTICE,19592469,31.04 
Department of Health,NHS Rotherham CCG,30/11/2017,C&M-PMS Prem Notional Rent,PRC DELEGATED CO-COMMISSIONING,NHS ROTHERHAM CCG GP PRACTICE,19592469,"3,204.17 "
Department of Health,NHS Rotherham CCG,30/11/2017,C&M-PMS QOF Aspiration,PRC DELEGATED CO-COMMISSIONING,NHS ROTHERHAM CCG GP PRACTICE,19592469,"3,051.89 "
Department of Health,NHS Rotherham CCG,30/11/2017,C&M-PMS Contract Value,PRC DELEGATED CO-COMMISSIONING,NHS ROTHERHAM CCG GP PRACTICE,19592471,"73,977.84 "
Department of Health,NHS Rotherham CCG,30/11/2017,C&M-PMS Funding Differential Review,PRC DELEGATED CO-COMMISSIONING,NHS ROTHERHAM CCG GP PRACTICE,19592471,"1,987.67 "
Department of Health,NHS Rotherham CCG,30/11/2017,C&M-PMS Out of Hours Opt Outs,PRC DELEGATED CO-COMMISSIONING,NHS ROTHERHAM CCG GP PRACTICE,19592471,7.28 
Department of Health,NHS Rotherham CCG,30/11/2017,C&M-PMS PCO Other,PRC DELEGATED CO-COMMISSIONING,NHS ROTHERHAM CCG GP PRACTICE,19592471,90.52 
Department of Health,NHS Rotherham CCG,30/11/2017,C&M-PMS Prem Notional Rent,PRC DELEGATED CO-COMMISSIONING,NHS ROTHERHAM CCG GP PRACTICE,19592471,"6,512.50 "
Department of Health,NHS Rotherham CCG,30/11/2017,C&M-PMS Prem Rates,PRC DELEGATED CO-COMMISSIONING,NHS ROTHERHAM CCG GP PRACTICE,19592471,333.80 
Department of Health,NHS Rotherham CCG,30/11/2017,C&M-PMS Prem Water Rates,PRC DELEGATED CO-COMMISSIONING,NHS ROTHERHAM CCG GP PRACTICE,19592471,41.48 
Department of Health,NHS Rotherham CCG,30/11/2017,C&M-PMS QOF Aspiration,PRC DELEGATED CO-COMMISSIONING,NHS ROTHERHAM CCG GP PRACTICE,19592471,"7,080.60 "
Department of Health,NHS Rotherham CCG,30/11/2017,Prescribing,MEDICINES MANAGEMENT - CLINICAL,FRESENIUS KABI LTD,19722074,"26,099.08 "
Department of Health,NHS Rotherham CCG,30/11/2017,C&M-APMS Contract Value,PRC DELEGATED CO-COMMISSIONING,NHS ROTHERHAM CCG GP PRACTICE,19592472,"54,617.37 "
Department of Health,NHS Rotherham CCG,30/11/2017,C&M-APMS Other FDR Payment,PRC DELEGATED CO-COMMISSIONING,NHS ROTHERHAM CCG GP PRACTICE,19592472,"2,568.13 "
Department of Health,NHS Rotherham CCG,30/11/2017,C&M-APMS Prem Actual Rent,PRC DELEGATED CO-COMMISSIONING,NHS ROTHERHAM CCG GP PRACTICE,19592472,"1,250.00 "
Department of Health,NHS Rotherham CCG,30/11/2017,C&M-APMS Prem Healthcentre Rates,PRC DELEGATED CO-COMMISSIONING,NHS ROTHERHAM CCG GP PRACTICE,19592472,142.60 
Department of Health,NHS Rotherham CCG,30/11/2017,C&M-APMS Prem Healthcentre Rent,PRC DELEGATED CO-COMMISSIONING,NHS ROTHERHAM CCG GP PRACTICE,19592472,"4,500.00 "
Department of Health,NHS Rotherham CCG,30/11/2017,C&M-APMS Prem Rates,PRC DELEGATED CO-COMMISSIONING,NHS ROTHERHAM CCG GP PRACTICE,19592472,385.91 
Department of Health,NHS Rotherham CCG,30/11/2017,C&M-APMS Prem Water Rates,PRC DELEGATED CO-COMMISSIONING,NHS ROTHERHAM CCG GP PRACTICE,19592472,82.20 
Department of Health,NHS Rotherham CCG,30/11/2017,C&M-APMS QOF Aspiration,PRC DELEGATED CO-COMMISSIONING,NHS ROTHERHAM CCG GP PRACTICE,19592472,"4,367.75 "
Department of Health,NHS Rotherham CCG,30/11/2017,C&M-PMS Funding Differential Review,PRC DELEGATED CO-COMMISSIONING,NHS ROTHERHAM CCG GP PRACTICE,19592472,"12,840.67 "
Department of Health,NHS Rotherham CCG,30/11/2017,C&M-PMS QOF Aspiration,PRC DELEGATED CO-COMMISSIONING,NHS ROTHERHAM CCG GP PRACTICE,19592472,"4,243.96 "
Department of Health,NHS Rotherham CCG,30/11/2017,Apprenticeship Levy Payable,BALANCE SHEET,HMRC,19620260,428.00 
Department of Health,NHS Rotherham CCG,30/11/2017,Income tax <1Yr,BALANCE SHEET,HMRC,19620260,"48,040.56 "
Department of Health,NHS Rotherham CCG,30/11/2017,Income tax <1Yr-Student Loans,BALANCE SHEET,HMRC,19620260,97.00 
Department of Health,NHS Rotherham CCG,30/11/2017,National Insurance < 1 yr-NI- ERS,BALANCE SHEET,HMRC,19620260,"35,264.04 "
Department of Health,NHS Rotherham CCG,30/11/2017,National Insurance < 1 yr-NI-EES,BALANCE SHEET,HMRC,19620260,"26,809.60 "
Department of Health,NHS Rotherham CCG,30/11/2017,Statutory Mat Pay < 1 yr,BALANCE SHEET,HMRC,19620260,(648.50)
Department of Health,NHS Rotherham CCG,30/11/2017,LPF Management Fees,BUSINESS INFORMATICS,KIER BUSINESS SERVICES LTD,19626074,"26,703.60 "
Department of Health,NHS Rotherham CCG,30/11/2017,Hcare Srv Rec NHS Trust-Contract Baseline,ACUTE COMMISSIONING,LEEDS TEACHING HOSPITALS NHS TRUST,19480200,"33,916.01 "
Department of Health,NHS Rotherham CCG,30/11/2017,Cont Care-Learning Disab(<65),CHC ADULT FULLY FUNDED,LODGE HEALTH CARE LTD,19845788,"31,258.65 "
Department of Health,NHS Rotherham CCG,30/11/2017,C&M-PMS Contract Value,PRC DELEGATED CO-COMMISSIONING,NHS ROTHERHAM CCG GP PRACTICE,19596320,"98,115.65 "
Department of Health,NHS Rotherham CCG,30/11/2017,C&M-PMS Funding Differential Review,PRC DELEGATED CO-COMMISSIONING,NHS ROTHERHAM CCG GP PRACTICE,19596320,"3,057.08 "
Department of Health,NHS Rotherham CCG,30/11/2017,C&M-PMS Prem Actual Rent,PRC DELEGATED CO-COMMISSIONING,NHS ROTHERHAM CCG GP PRACTICE,19596320,"7,153.13 "
Department of Health,NHS Rotherham CCG,30/11/2017,C&M-PMS Prem Healthcentre Rent,PRC DELEGATED CO-COMMISSIONING,NHS ROTHERHAM CCG GP PRACTICE,19596320,"1,073.76 "
Department of Health,NHS Rotherham CCG,30/11/2017,C&M-PMS Prem Notional Rent,PRC DELEGATED CO-COMMISSIONING,NHS ROTHERHAM CCG GP PRACTICE,19596320,"7,079.17 "
Department of Health,NHS Rotherham CCG,30/11/2017,C&M-PMS Prem Rates,PRC DELEGATED CO-COMMISSIONING,NHS ROTHERHAM CCG GP PRACTICE,19596320,607.20 
Department of Health,NHS Rotherham CCG,30/11/2017,C&M-PMS QOF Aspiration,PRC DELEGATED CO-COMMISSIONING,NHS ROTHERHAM CCG GP PRACTICE,19596320,"10,063.53 "
Department of Health,NHS Rotherham CCG,30/11/2017,Clinical&Medical-Serv Recd-CCGs,COLLABORATIVE COMMISSIONING,NHS SHEFFIELD CCG,19547452,"83,020.00 "
Department of Health,NHS Rotherham CCG,31/10/2017,Clinical&Medical-Commercial Sector,PATIENT TRANSPORT,NHS SHEFFIELD CCG,19455073,"126,888.00 "
Department of Health,NHS Rotherham CCG,30/11/2017,Hlthcre-Foundation Trsts,LEARNING DIFFICULTIES,NORTHUMBERLAND TYNE AND WEAR NHS FOUNDATION TRUST,19651953,"73,935.00 "
Department of Health,NHS Rotherham CCG,31/10/2017,Hlthcre-Foundation Trsts,LEARNING DIFFICULTIES,NORTHUMBERLAND TYNE AND WEAR NHS FOUNDATION TRUST,19310255,"71,550.00 "
Department of Health,NHS Rotherham CCG,30/11/2017,Clinical&Medical-Commercial Sector,ACUTE COMMISSIONING,ONEHEALTH GROUP,19801538,"34,415.55 "
Department of Health,NHS Rotherham CCG,30/11/2017,Clinical&Medical-Commercial Sector,PATIENT TRANSPORT,PREMIER CARE DIRECT LTD,19626086,"38,557.00 "
Department of Health,NHS Rotherham CCG,30/11/2017,Hcare Srv Rec Fdtn Trust-Contract Baseline,LEARNING DIFFICULTIES,ROTHERHAM DONCASTER & SOUTH HUMBER MENTAL HEALTH NHS FOUNDATION TRUST,19604233,"185,473.00 "
Department of Health,NHS Rotherham CCG,30/11/2017,Hcare Srv Rec Fdtn Trust-Contract Baseline,MENTAL HEALTH CONTRACTS,ROTHERHAM DONCASTER & SOUTH HUMBER MENTAL HEALTH NHS FOUNDATION TRUST,19604240,"2,241,064.08 "
Department of Health,NHS Rotherham CCG,30/11/2017,Cont Care- Children,CHC CHILDREN,ROTHERHAM METROPOLITAN BOROUGH COUNCIL,19770966,"32,650.43 "
Department of Health,NHS Rotherham CCG,30/11/2017,Cont Care- Prior Year Payments,CHC ADULT FULLY FUNDED,ROTHERHAM METROPOLITAN BOROUGH COUNCIL,19827067,"24,347.28 "
Department of Health,NHS Rotherham CCG,30/11/2017,Cont Care-Learning Disab(<65),CHC ADULT FULLY FUNDED,ROTHERHAM METROPOLITAN BOROUGH COUNCIL,19827067,"12,545.71 "
Department of Health,NHS Rotherham CCG,30/11/2017,Oth Travel Costs-Training Trav&Subs,MEDICINES MANAGEMENT - CLINICAL,ROTHERHAM NHS FOUNDATION TRUST,19547483,397.04 
Department of Health,NHS Rotherham CCG,30/11/2017,Seconded-Basic Sal-Staff fm oth org,MEDICINES MANAGEMENT - CLINICAL,ROTHERHAM NHS FOUNDATION TRUST,19547483,"33,945.18 "
Department of Health,NHS Rotherham CCG,30/11/2017,Stationery,MEDICINES MANAGEMENT - CLINICAL,ROTHERHAM NHS FOUNDATION TRUST,19547483,282.48 
Department of Health,NHS Rotherham CCG,30/11/2017,Computer Hardware Purch,PRIMARY CARE IT,ROTHERHAM NHS FOUNDATION TRUST,19562879,"115,141.00 "
Department of Health,NHS Rotherham CCG,30/11/2017,Computer Network Costs,IM&T,ROTHERHAM NHS FOUNDATION TRUST,19562881,"57,332.00 "
Department of Health,NHS Rotherham CCG,30/11/2017,Clinical&Medical-Serv Recd-F Trsts,Winter Resilience,ROTHERHAM NHS FOUNDATION TRUST,19603910,"71,800.00 "
Department of Health,NHS Rotherham CCG,30/11/2017,Clinical&Medical- Non NHS LES,LOCAL ENHANCED SERVICES,ROTHERHAM NHS FOUNDATION TRUST,19626053,"36,000.00 "
Department of Health,NHS Rotherham CCG,30/11/2017,Oth Travel Costs-Training Trav&Subs,MEDICINES MANAGEMENT - CLINICAL,ROTHERHAM NHS FOUNDATION TRUST,19869217,647.92 
Department of Health,NHS Rotherham CCG,30/11/2017,Seconded-Basic Sal-Staff fm oth org,MEDICINES MANAGEMENT - CLINICAL,ROTHERHAM NHS FOUNDATION TRUST,19869217,"35,590.68 "
Department of Health,NHS Rotherham CCG,30/11/2017,Stationery,MEDICINES MANAGEMENT - CLINICAL,ROTHERHAM NHS FOUNDATION TRUST,19869217,541.13 
Department of Health,NHS Rotherham CCG,31/10/2017,Hcare Srv Rec Fdtn Trust-Contract Baseline,ACUTE COMMISSIONING,ROTHERHAM NHS FOUNDATION TRUST,19433267,"11,382,941.00 "
Department of Health,NHS Rotherham CCG,31/10/2017,Hcare Srv Rec Fdtn Trust-Contract Baseline,COMMUNITY SERVICES,ROTHERHAM NHS FOUNDATION TRUST,19433267,"2,402,361.00 "
Department of Health,NHS Rotherham CCG,31/10/2017,Clinical&Medical-Clinical Other,WHEELCHAIR SERVICE,ROTHERHAM NHS FOUNDATION TRUST,19414582,"28,158.64 "
Department of Health,NHS Rotherham CCG,31/10/2017,Oth Travel Costs-Training Trav&Subs,MEDICINES MANAGEMENT - CLINICAL,ROTHERHAM NHS FOUNDATION TRUST,19376166,3.92 
Department of Health,NHS Rotherham CCG,31/10/2017,Seconded-Basic Sal-Staff fm oth org,MEDICINES MANAGEMENT - CLINICAL,ROTHERHAM NHS FOUNDATION TRUST,19376166,"35,952.72 "
Department of Health,NHS Rotherham CCG,31/10/2017,Stationery,MEDICINES MANAGEMENT - CLINICAL,ROTHERHAM NHS FOUNDATION TRUST,19376166,399.92 
Department of Health,NHS Rotherham CCG,30/11/2017,Hcare Srv Rec Fdtn Trust-Contract Baseline,ACUTE COMMISSIONING,SHEFFIELD CHILDRENS NHS FOUNDATION TRUST,19562833,"163,749.00 "
Department of Health,NHS Rotherham CCG,30/11/2017,Hcare Srv Rec Fdtn Trust-Contract Baseline,ACUTE COMMISSIONING,SHEFFIELD TEACHING HOSPITALS NHS FOUNDATION TRUST,19562840,"107,217.00 "
Department of Health,NHS Rotherham CCG,30/11/2017,Hcare Srv Rec Fdtn Trust-Contract Cost per Case,ACUTE COMMISSIONING,SHEFFIELD TEACHING HOSPITALS NHS FOUNDATION TRUST,19562844,"176,109.00 "
Department of Health,NHS Rotherham CCG,30/11/2017,Hcare Srv Rec Fdtn Trust-Contract Baseline,ACUTE COMMISSIONING,SHEFFIELD TEACHING HOSPITALS NHS FOUNDATION TRUST,19562846,"1,625,559.00 "
Department of Health,NHS Rotherham CCG,30/11/2017,C&M-PMS Contract Value,PRC DELEGATED CO-COMMISSIONING,NHS ROTHERHAM CCG GP PRACTICE,19592473,(83.54)
Department of Health,NHS Rotherham CCG,30/11/2017,C&M-PMS GP Statutory Levy,PRC DELEGATED CO-COMMISSIONING,NHS ROTHERHAM CCG GP PRACTICE,19592473,(471.33)
Department of Health,NHS Rotherham CCG,30/11/2017,C&M-PMS Out of Hours Opt Outs,PRC DELEGATED CO-COMMISSIONING,NHS ROTHERHAM CCG GP PRACTICE,19592473,"(5,857.42)"
Department of Health,NHS Rotherham CCG,30/11/2017,C&M-PMS QOF Aspiration,PRC DELEGATED CO-COMMISSIONING,NHS ROTHERHAM CCG GP PRACTICE,19592473,"(1,137.14)"
Department of Health,NHS Rotherham CCG,30/11/2017,C&M-PMS Voluntary Levy,PRC DELEGATED CO-COMMISSIONING,NHS ROTHERHAM CCG GP PRACTICE,19592473,(69.38)
Department of Health,NHS Rotherham CCG,30/11/2017,ME-PMS GP Pension EEs-PMS,PRC DELEGATED CO-COMMISSIONING,NHS ROTHERHAM CCG GP PRACTICE,19592473,"(10,740.62)"
Department of Health,NHS Rotherham CCG,30/11/2017,ME-PMS GP Pension ERs Adjs - PMS,PRC DELEGATED CO-COMMISSIONING,NHS ROTHERHAM CCG GP PRACTICE,19592473,"(10,826.94)"
Department of Health,NHS Rotherham CCG,30/11/2017,C&M-PMS Contract Value,PRC DELEGATED CO-COMMISSIONING,NHS ROTHERHAM CCG GP PRACTICE,19592474,"123,821.04 "
Department of Health,NHS Rotherham CCG,30/11/2017,C&M-PMS Funding Differential Review,PRC DELEGATED CO-COMMISSIONING,NHS ROTHERHAM CCG GP PRACTICE,19592474,"3,748.50 "
Department of Health,NHS Rotherham CCG,30/11/2017,C&M-PMS Out of Hours Opt Outs,PRC DELEGATED CO-COMMISSIONING,NHS ROTHERHAM CCG GP PRACTICE,19592474,4.30 
Department of Health,NHS Rotherham CCG,30/11/2017,C&M-PMS PCO Other,PRC DELEGATED CO-COMMISSIONING,NHS ROTHERHAM CCG GP PRACTICE,19592474,118.36 
Department of Health,NHS Rotherham CCG,30/11/2017,C&M-PMS Prem Healthcentre Rent,PRC DELEGATED CO-COMMISSIONING,NHS ROTHERHAM CCG GP PRACTICE,19592474,"1,092.73 "
Department of Health,NHS Rotherham CCG,30/11/2017,C&M-PMS QOF Aspiration,PRC DELEGATED CO-COMMISSIONING,NHS ROTHERHAM CCG GP PRACTICE,19592474,"14,247.24 "
Department of Health,NHS Rotherham CCG,30/11/2017,Clinical&Medical-Voluntary Sector,ACUTE CHILDRENS SERVICES,VOLUNTARY ACTION ROTHERHAM,19771241,"100,000.00 "
Department of Health,NHS Rotherham CCG,30/11/2017,Hcare Srv Rec NHS Trust-Contract Baseline,PATIENT TRANSPORT,YORKSHIRE AMBULANCE SERVICE NHS TRUST,19504815,"119,257.60 "
Department of Health,NHS Rotherham CCG,30/11/2017,Hcare Srv Rec NHS Trust-Contract Baseline,AMBULANCE SERVICES,YORKSHIRE AMBULANCE SERVICE NHS TRUST,19504818,"619,282.00 "
Department of Health,NHS Rotherham CCG,30/11/2017,Hcare Srv Rec NHS Trust-Contract Baseline,NHS 111,YORKSHIRE AMBULANCE SERVICE NHS TRUST,19562860,"48,159.53 "
,,,,,,,"24,011,750.06 "
